Cogmind - Beta 15 @@@ ROGUE MODE // 2025.06.04 @ 20:29:08 Player: Wyvric Result: Destroyed by S-43 Plague with Heavy Machine Gun Performance ------------- Evolutions (7) 3500 Regions Visited (18) 3600 Robots Destroyed (341) 1705 Value Destroyed (9209) 9209 Prototype IDs (40) 800 Alien Tech Used (0) 0 Bonus (1614) 1614 TOTAL SCORE: 20428 Bonus ------- High Alert Combat Kills 614 Entered Garrisons 200 Used RIF Installer 500 Aligned with FarCom 300 Cogmind --------- Core Integrity 0/1300 Matter 300/300 Energy 98/100 System Corruption 0% Temperature Cool (0) Movement Core (50) Location -3/Research Parts ------- > --- POWER (2) -------- (None) > --- PROPULSION (8) --- (None) > --- UTILITY (7) ------ (None) > --- WEAPON (4) ------- (None) > --- INVENTORY (5) ---- Improved Cooling System High-capacity Storage Unit Advanced Sensor Array Flak Gun Flak Gun Peak State ------------ > --- POWER ------------ Antimatter-Ion Reactor > --- PROPULSION ------- Wheeled Compact Exoskeleton > --- UTILITY ---------- Armored Scrap Engine Huge Storage Unit Advanced Sensor Array Improved Medium Armor Plating > --- WEAPON ----------- Improved Proton Missile Launcher Shotgun Ballistic Rail Construct/C > --- INVENTORY -------- Improved Cooling System Makeshift Microdissipator Network Humpback Structural Scanner Advanced Terrain Scan Processor Improved Transmission Jammer Improved Force Field Improved Component Analysis Suite Shock Rifle Arc Thrower Arc Thrower Arc Thrower Beamcaster Autogun Autogun Autogun Flak Gun Flak Gun Heavy Machine Gun KE Penetrator KE Penetrator Railgun Hardcell Cannon [Rating: 80] Favorites ----------- Power Constructs Engine Deuterium Engine Power Core Light Nuclear Core Reactor Constructs Propulsion Compact Wheel Wheel Compact Wheel Utility Huge Storage Unit Device Armored Scrap Engine Storage Huge Storage Unit Processor Core Analyzer Hackware Hacking Suite Protection Hardened Light Armor Plating Weapon Constructs Energy Gun Shock Rifle Energy Cannon Plasma Cannon Ballistic Gun Enhanced Autogun Ballistic Cannon Constructs Launcher Improved Proton Missile Launcher Impact Weapon Heavy Flail Slashing Weapon Power Sword Build | -11 -10 -10 -9 -9 -9 -8 -8 -8 -7 -7 -7 -5 -5 -5 -5 -4 -4 -3 ------- Run | Yrd Mat Min Mat Min Exi Min Mat Gar Fac Sto Rec Fac Upp Upp War Pro Fac Res Slots Evolved 14 | . . . 2 . . . 2 . 2 . . 4 . . . . 2 2 Power 1 | . . . . . . . . . . . . 1 . . . . . . Propulsion 6 | . . . . . . . 2 . 2 . . 2 . . . . . . Utility 5 | . . . 2 . . . . . . . . . . . . . 1 2 Weapon 2 | . . . . . . . . . . . . 1 . . . . 1 . Parts Attached 158 | 8 15 2 24 2 1 6 27 13 12 7 19 3 3 2 1 1 11 1 Power 15 | 1 2 . 2 . . 1 3 1 . 1 2 . . . . . 2 . Engine 8 | 1 1 . 1 . . . 2 1 . . 2 . . . . . . . Core 5 | . 1 . 1 . . 1 1 . . 1 . . . . . . . . Reactor 2 | . . . . . . . . . . . . . . . . . 2 . Propulsion 41 | 2 3 1 5 . . . 8 5 5 3 6 . . . . . 2 1 Treads . | . . . . . . . . . . . . . . . . . . . Leg . | . . . . . . . . . . . . . . . . . . . Wheel 41 | 2 3 1 5 . . . 8 5 5 3 6 . . . . . 2 1 Hover . | . . . . . . . . . . . . . . . . . . . Flight . | . . . . . . . . . . . . . . . . . . . Utility 55 | 2 4 . 9 1 1 2 7 1 4 3 8 3 2 1 1 1 5 . Device 22 | 1 1 . 4 . . 2 . 1 1 . 4 1 1 . . 1 5 . Storage 7 | 1 1 . 2 . 1 . 1 . 1 . . . . . . . . . Processor 3 | . 1 . . . . . . . . . 1 1 . . . . . . Hackware 1 | . . . . . . . 1 . . . . . . . . . . . Protection 22 | . 1 . 3 1 . . 5 . 2 3 3 1 1 1 1 . . . Artifact . | . . . . . . . . . . . . . . . . . . . Weapon 47 | 3 6 1 8 1 . 3 9 6 3 . 3 . 1 1 . . 2 . Energy Gun 13 | 1 3 . 3 . . 3 2 . . . 1 . . . . . . . Energy Cannon 4 | . . . . . . . . 2 1 . . . . 1 . . . . Ballistic Gun 14 | 2 1 . . . . . 5 3 . . 2 . 1 . . . . . Ballistic Cannon 7 | . 2 . 3 . . . 1 . . . . . . . . . 1 . Launcher 6 | . . 1 1 1 . . . 1 2 . . . . . . . . . Special Weapon . | . . . . . . . . . . . . . . . . . . . Impact Weapon 2 | . . . 1 . . . 1 . . . . . . . . . . . Slashing Weapon 1 | . . . . . . . . . . . . . . . . . 1 . Piercing Weapon . | . . . . . . . . . . . . . . . . . . . Special Melee Weapon . | . . . . . . . . . . . . . . . . . . . Unidentified Prototypes 4 | . . . 1 . . . 1 . . . 2 . . . . . . . Parts Lost 83 | . 6 . 4 . . 4 16 5 4 7 7 . . 1 . 1 26 2 Power 14 | . 1 . 1 . . 1 3 1 . 1 . . . 1 . . 5 . Propulsion 39 | . 3 . 3 . . . 7 4 3 5 3 . . . . 1 9 1 Utility 13 | . 1 . . . . . 2 . 1 1 1 . . . . . 7 . Weapon 17 | . 1 . . . . 3 4 . . . 3 . . . . . 5 1 Highest Loss Streak 14 | . 4 . 1 . . 2 4 2 3 3 5 . . 1 . 1 14 2 To Critical Strikes . | . . . . . . . . . . . . . . . . . . . Average Backups 23 | 3 12 14 19 25 28 28 28 28 28 30 24 21 20 21 22 24 18 4 Power . | . 1 1 . . . . . 1 2 3 1 1 . . . . . . Propulsion 3 | 1 3 4 4 4 5 5 3 3 1 2 3 4 2 . . . . . Utility 6 | . 3 2 4 3 7 8 11 9 6 6 6 5 6 5 5 7 7 2 Weapon 12 | . 3 6 9 16 16 13 12 13 15 16 13 10 10 14 17 16 10 2 Tool/Special . | . . . . . . . . . . . . . . . . . . . Unused Backups 110 | . 7 1 5 6 1 1 1 5 . 3 28 2 7 8 . 5 26 4 Power 8 | . 2 . . . . . . . . 1 2 . 2 . . . 1 . Propulsion 17 | . 1 . . 2 . . . . . . 10 . 3 1 . . . . Utility 32 | . 3 1 4 . 1 1 1 4 . 1 4 1 . 1 . . 9 1 Weapon 52 | . 1 . 1 4 . . . 1 . 1 12 1 2 5 . 5 16 3 Tool/Special 1 | . . . . . . . . . . . . . . 1 . . . . Average Slot Usage (%) 66 | . 98 100 97 100 84 87 86 82 84 78 55 40 41 39 35 35 38 2 Engine 4 | . 10 . 2 . . . 3 5 7 2 6 4 5 5 5 5 1 . Core 3 | . 3 14 8 11 11 10 5 2 . 4 . . . . . . . . Wheel 18 | . 27 28 21 22 22 22 33 29 40 36 16 5 5 5 5 5 5 . Device 8 | . 8 6 21 11 11 12 3 5 5 . 6 7 10 9 11 10 12 . Storage 8 | . 14 14 11 11 11 11 9 9 7 7 7 5 5 5 5 5 4 . Protection 6 | . 1 . 10 22 7 9 12 7 6 10 5 2 . 1 . . . . Energy Gun 3 | . 1 . 1 22 22 21 3 . . . . . . . . . . . Energy Cannon 1 | . . . . . . . . 6 9 . . 5 1 3 5 5 . . Ballistic Gun 3 | . 19 . . . . . 12 4 2 14 2 . . . . . . . Ballistic Cannon 4 | . 7 27 17 . . . . . . . 4 . 3 1 . . 6 . Impact Weapon 1 | . . . 1 . . . 1 5 1 . . 4 4 . . . . . Peak Build Rating 80 | 8 15 14 23 25 28 28 30 33 38 37 57 61 64 72 66 71 80 8 Average Rating 41 | 6 10 13 16 24 24 27 27 30 35 34 49 58 59 65 65 67 67 4 On Entrance 34 | . 8 14 13 23 25 28 27 28 32 37 34 55 60 64 65 66 71 7 Naked Turns 39 | . . . . . . . . . . . . . . . . . . 39 Heaviest Build 301 | 11 34 34 107 117 232 232 224 233 238 230 301 113 116 116 104 112 128 3 Greatest Support 118 | 32 32 32 32 32 32 32 64 46 72 78 118 118 118 118 118 118 98 3 Greatest Overweight (x) 11 | . 1 1 3 3 7 7 11 11 8 6 5 . . . . 1 6 . Average Overweight (x) 2 | . . 1 1 3 5 6 4 6 3 3 . . . . . . 1 . Largest Inventory Capacity 35 | 8 15 15 25 25 35 35 35 35 35 35 35 25 25 25 25 25 25 5 Average Capacity 26 | 7 14 15 20 25 33 35 35 35 35 35 25 25 25 25 25 25 24 5 Most Carried 35 | 8 15 15 25 25 35 35 35 35 35 35 35 25 25 25 22 25 25 5 Average Carried 25 | 3 12 14 19 24 31 33 33 32 32 34 24 24 23 24 22 24 19 4 Final Capacity 35 | 8 15 15 25 25 35 35 35 35 35 35 25 25 25 25 25 25 25 5 Final Carried 35 | 8 15 15 25 25 35 32 35 31 34 35 25 25 24 22 22 25 18 5 Scrap Engine Consumption 166 | . . . . . . . . . . . 93 1 9 16 . 8 39 . Constructs Created 4 | . . . . . . . . . . . 3 . . . . . 1 . Constructs Modified 65 | . . . . . . . . . . . 28 5 8 6 . 3 15 . Class Distribution -------------------- 46% | Construct 29% | Hauler-Mutant 16% | Mutant 7% | Scavenger-Mutant Dominant Class ---------------- Mutant | -10/Materials Mutant | -10/Mines Mutant | -9/Materials Mutant | -9/Mines Hauler-Mutant | -9/Exiles Hauler-Mutant | -8/Mines Hauler-Mutant | -8/Materials Hauler-Mutant | -8/Garrison Hauler-Mutant | -7/Factory Hauler-Mutant | -7/Storage Construct | -7/Recycling Construct | -5/Factory Construct | -5/Upper Caves Construct | -5/Upper Caves Construct | -5/Warlord Construct | -4/Proximity Caves Construct | -4/Factory Mutant | -3/Research Resources | -11 -10 -10 -9 -9 -9 -8 -8 -8 -7 -7 -7 -5 -5 -5 -5 -4 -4 -3 ----------- Run | Yrd Mat Min Mat Min Exi Min Mat Gar Fac Sto Rec Fac Upp Upp War Pro Fac Res Matter Collected 9937 | 212 393 282 819 99 10 60 1066 495 371 387 3229 128 470 479 . 439 983 15 Remotely 10 | . . . . . . . . . . . 10 . . . . . . . Salvage Created 16092 | 164 746 238 778 244 . 554 1841 577 710 583 5088 131 393 779 . 506 2735 25 Parts 818 | 12 39 17 69 23 . 34 106 29 31 31 230 3 10 27 . 23 132 2 Haulers Intercepted 5 | . 1 . . . . . 3 . . . 1 . . . . . . . Recyclers Shooed 27 | . 1 4 . . . . 1 . . 1 16 . . . . . 4 . Parts Field Recycled 12 | . . . 12 . . . . . . . . . . . . . . . Retrieved Matter 111 | . . . 111 . . . . . . . . . . . . . . . Parts Self-Destructed 17 | . . . . . . . . . . . . . 5 10 . 2 . . Prevented 28 | . . . . . . . . . . . . . . 14 . 14 . . Kills | -11 -10 -10 -9 -9 -9 -8 -8 -8 -7 -7 -7 -5 -5 -5 -5 -4 -4 -3 ------- Run | Yrd Mat Min Mat Min Exi Min Mat Gar Fac Sto Rec Fac Upp Upp War Pro Fac Res Combat Hostiles Destroyed 212 | . 13 12 26 10 . 12 33 16 12 8 14 2 4 13 . 11 26 . Melee 1 | . . . . . . . 1 . . . . . . . . . . . Guns 65 | . 9 . . 5 . 10 24 3 . 8 6 . . . . . . . Cannons 74 | . 4 10 16 . . . . 5 3 . 4 2 3 6 . 7 14 . AOE 62 | . . 2 10 5 . 1 6 8 8 . 4 . . 5 . 1 12 . Classes Destroyed 23 | 2 3 1 3 . . 1 3 2 1 . 3 . 2 . . 1 1 . Worker 21 | . 1 . . 2 . 1 8 . 2 . 1 . . . . . 5 1 Builder 49 | . . . 3 . . . 3 . . . 28 . . . . . 15 . Tunneler 11 | 4 . . . . . 1 1 . 2 . 2 . . . . . 1 . Hauler 5 | . 1 . . . . . 3 . . . 1 . . . . . . . Recycler 74 | 1 2 3 . 1 . . 3 . 2 2 51 . . . . . 9 . Mechanic 1 | . . . . . . . 1 . . . . . . . . . . . Operator 4 | . . . . . . . 2 . 1 . . . . . . . 1 . Drone 2 | . . . . . . . . . . . . . . . . 2 . . Watcher 3 | . . . . . . . 2 . . 1 . . . . . . . . Swarmer 75 | . . 12 4 10 . 4 14 4 4 1 . . . 10 . 4 8 . Cutter 2 | . . . . . . . . 2 . . . . . . . . . . Grunt 77 | . 13 . 11 . . 6 12 7 7 3 2 1 . 1 . 3 11 . Brawler 1 | . . . 1 . . . . . . . . . . . . . . . Duelist 2 | . . . . . . . . . 1 . 1 . . . . . . . Sentry 29 | . . . 10 . . . 6 1 . 4 4 1 1 1 . . 1 . Demolisher 1 | . . . . . . . . . . . 1 . . . . . . . Specialist 2 | . . . . . . . . . . . . . . . . . 2 . Hunter 6 | . . . . . . 2 1 1 . . . . 2 . . . . . Programmer 10 | . . . . . . . . 1 . . 3 . . 1 . 1 4 . Behemoth 2 | . . . . . . . . . . . . . 1 . . 1 . . Scientist 2 | . . . . . . . . . . . 2 . . . . . . . Scrapper 3 | . . . . . . . . . . . 3 . . . . . . . Packrat 1 | . . . . . . . . . . . . . 1 . . . . . Samaritan 3 | . . . . . . . . . . . . . 1 2 . . . . Best Kill Streak 11 | 3 4 4 5 5 . 4 11 4 11 4 8 1 1 7 . 4 8 1 Combat Bots Only 7 | . 4 3 4 4 . 4 7 4 7 3 5 1 1 7 . 4 5 . Max Kills in Single Turn 5 | 2 2 2 5 3 . 1 3 4 3 1 2 1 1 2 . 2 5 1 Gunslinging . | . . . . . . . . . . . . . . . . . . . Exploded 5 | . . 2 4 3 . 1 2 4 3 . 2 . . 2 . 1 5 . Melee 1 | . . . . . . . 1 . . . . . . . . . . . Uniques/NPCs Destroyed . | . . . . . . . . . . . . . . . . . . . Combat | -11 -10 -10 -9 -9 -9 -8 -8 -8 -7 -7 -7 -5 -5 -5 -5 -4 -4 -3 -------- Run | Yrd Mat Min Mat Min Exi Min Mat Gar Fac Sto Rec Fac Upp Upp War Pro Fac Res Hostile Shots Fired 1401 | . 62 42 66 26 . 62 169 42 33 140 163 17 58 55 . 40 334 92 Missed 434 | . 11 12 27 7 . 16 48 9 12 48 57 3 15 17 . 18 96 38 Hits 967 | . 51 30 39 19 . 46 121 33 21 92 106 14 43 38 . 22 238 54 Melee 7 | . . . . . . . . 2 . . . . . 5 . . . . Projectile 960 | . 51 30 39 19 . 46 121 31 21 92 106 14 43 33 . 22 238 54 AOE 3 | . . . . . . . . 1 . 2 . . . . . . . . Critical Strikes 32 | . 1 . 5 1 . 1 5 . 1 1 . 1 2 2 . . 9 3 Part Disruptions 1 | . . . . . . . . . . . . . . . . . 1 . Damage Taken 16041 | . 639 263 566 136 . 560 1807 787 358 1100 1233 321 890 579 . 515 4916 1371 Core 3064 | . 173 64 72 27 . 45 141 64 18 99 144 44 111 46 . 26 687 1303 Absorbed by Shields 538 | . . . . . . . . . . . . . . . . . 538 . Ignored by Resistances 167 | . . . . 41 . 114 . . . . . . 12 . . . . . Regen/Repaired (Parts) 2195 | . . . 97 . . . . . . . 166 79 597 267 . 166 823 . Core Remaining (%) 58 | 100 . 5 . . . 64 . 62 . . 62 . . . . 77 40 . Volleys Fired 970 | 8 65 32 45 17 . 41 129 44 31 45 282 14 38 34 . 20 125 . Largest 2 | 2 2 2 2 2 . 2 2 2 2 2 2 1 1 1 . 1 2 . Hottest 160 | 40 85 66 66 100 . 100 100 160 160 50 75 48 48 89 . 89 106 . Shots Fired 1448 | 16 130 63 90 32 . 81 248 81 54 89 329 14 38 34 . 20 129 . Gun 696 | 16 118 . . 30 . 81 236 22 8 88 97 . . . . . . . Cannon 692 | . 12 62 82 . . . 7 47 38 1 225 14 38 23 . 20 123 . Launcher 60 | . . 1 8 2 . . 5 12 8 . 7 . . 11 . . 6 . Special . | . . . . . . . . . . . . . . . . . . . Kinetic 1033 | 16 103 62 82 . . . 199 22 8 89 311 14 19 . . . 108 . Thermal 129 | . 15 . . . . . . 47 38 . . . 19 . . . 10 . Explosive 32 | . . 1 8 2 . . 5 12 4 . . . . . . . . . Electromagnetic 254 | . 12 . . 30 . 81 44 . 4 . 18 . . 34 . 20 11 . Robot Hit Streak 29 | 6 11 10 8 7 . 6 29 17 8 11 11 9 6 24 . 8 11 . Robot Miss Streak 6 | 1 3 4 3 4 . 5 6 3 3 4 5 1 2 4 . 2 5 . Penetration Max 1 | . . . . . . . . . . . 1 . . . . . 1 . Secondary Targets 9 | . 1 . . 2 . . 4 1 . 1 . . . . . . . . Max Gunslinging Chain 1 | . 1 . . 1 . . 1 1 . 1 . . . . . . . . Shots Hit Robots 952 | 10 92 34 50 14 . 44 163 47 30 60 216 12 27 30 . 19 103 1 Core Hits 537 | 8 36 15 34 13 . 23 73 40 25 23 113 3 9 22 . 16 83 1 Critical Kills 3 | . . . . . . . 2 . 1 . . . . . . . . . Critical Parts Destroyed 2 | . . . . . . . 2 . . . . . . . . . . . Critical Strikes 14 | . 3 2 2 . . . 5 . 1 . . . . . . . 1 . Meltdown 1 | . . . . . . . . . 1 . . . . . . . . . Destroy 3 | . . . . . . . 3 . . . . . . . . . . . Blast 8 | . 3 2 2 . . . . . . . . . . . . . 1 . Corrupt 1 | . . . . . . . 1 . . . . . . . . . . . Smash 1 | . . . . . . . 1 . . . . . . . . . . . Melee Attacks 94 | . . . 5 . . . 21 58 1 5 . 2 . . . . 1 1 Impact 92 | . . . 5 . . . 21 58 1 5 . 2 . . . . . . Slashing 2 | . . . . . . . . . . . . . . . . . 1 1 Piercing . | . . . . . . . . . . . . . . . . . . . Sneak Attacks 6 | . . . . . . . 5 . . . . . . . . . . 1 Combat Hostiles . | . . . . . . . . . . . . . . . . . . . Follow-up Attacks . | . . . . . . . . . . . . . . . . . . . Damage Inflicted 31073 | 95 1049 861 1681 469 . 878 3691 1645 1397 1024 6753 534 1253 1654 . 1083 6924 82 Guns 7057 | 95 837 . . 191 . 801 2529 196 92 1024 1292 . . . . . . . Cannons 16319 | . 212 714 1021 . . . . 700 516 . 5024 534 1253 934 . 1001 4410 . Explosions 6948 | . . 147 660 278 . 77 495 749 789 . 437 . . 720 . 82 2514 . Melee 733 | . . . . . . . 667 . . . . . . . . . . 66 Ramming 16 | . . . . . . . . . . . . . . . . . . 16 Kinetic 16391 | 95 747 714 1021 . . . 1975 196 92 1024 6030 534 323 . . . 3640 . Thermal 4526 | . 185 . . 39 . 77 . 700 516 . 174 . 930 179 . 82 1644 . Explosive 3870 | . . 147 660 239 . . 495 749 591 . . . . . . . 989 . Electromagnetic 5537 | . 117 . . 191 . 801 554 . 198 . 549 . . 1475 . 1001 651 . Impact 667 | . . . . . . . 667 . . . . . . . . . . . Slashing 66 | . . . . . . . . . . . . . . . . . . 66 Piercing . | . . . . . . . . . . . . . . . . . . . Highest Corruption 8 | . . . . . . . . . . 1 4 . . 2 2 2 8 . Average Corruption 2 | . . . . . . . . . . 1 2 . . 1 2 2 4 . Corruption Purged 2 | . . . . . . . . . . . 2 . . . . . . . Corruption Blocked . | . . . . . . . . . . . . . . . . . . . Effects 103 | . . . . . . . . . . 4 65 . . 9 . 18 7 . Message Errors 21 | . . . . . . . . . . . 13 . . 4 . 3 1 . Matter Fused 22 | . . . . . . . . . . . 17 . . 1 . 3 1 . Heat Flow Errors 18 | . . . . . . . . . . 2 9 . . 2 . 4 1 . Energy Discharges 14 | . . . . . . . . . . 1 10 . . 1 . 1 1 . Data Loss (minor) 17 | . . . . . . . . . . 1 9 . . 1 . 5 1 . Data Loss (major) 5 | . . . . . . . . . . . 4 . . . . 1 . . Misfires 2 | . . . . . . . . . . . . . . . . . 2 . Alerts 2 | . . . . . . . . . . . 1 . . . . 1 . . Weapon Failures 2 | . . . . . . . . . . . 2 . . . . . . . Overload Shots . | . . . . . . . . . . . . . . . . . . . Overflow Damage 1635 | . . 3 47 8 . 6 237 . . . 464 28 55 175 . 28 584 . Projectiles 774 | . . 1 7 . . . 25 . . . 436 28 55 35 . 28 159 . Explosions 680 | . . 2 40 8 . 6 31 . . . 28 . . 140 . . 425 . Melee 181 | . . . . . . . 181 . . . . . . . . . . . Knockbacks 87 | . 5 7 3 . . . 4 . . . 30 1 2 . . . 35 . Impact 3 | . . . . . . . 3 . . . . . . . . . . . Kinetic 80 | . 5 7 3 . . . . . . . 30 1 2 . . . 32 . Secondary 4 | . . . . . . . 1 . . . . . . . . . 3 . Self-Inflicted Damage 1258 | . . 22 . . . . 30 142 33 . . . . 43 . 69 911 8 Shots 24 | . . 1 . . . . 1 3 1 . . . . 1 . 2 15 . Rammed 1 | . . . . . . . . . . . . . . . . . . 1 Targets Rammed 1 | . . . . . . . . . . . . . . . . . . 1 Kicked . | . . . . . . . . . . . . . . . . . . . Crushed . | . . . . . . . . . . . . . . . . . . . Highest Temperature 401 | . 328 108 308 198 . 199 261 180 278 259 276 90 51 236 . 345 401 9 Average Temperature 71 | . 71 33 65 88 . 108 90 59 98 65 51 47 24 87 . 110 76 9 Received Heat Transfer 3718 | . 375 . 270 . . 198 765 189 189 303 369 81 69 18 . 39 714 139 Effects 9 | . 3 . . . . . 2 . . . . . . 2 . 1 1 . Shutdowns 2 | . 1 . . . . . . . . . . . . . . . 1 . Energy Bleed 2 | . . . . . . . 2 . . . . . . . . . . . Interference 4 | . 2 . . . . . . . . . . . . 2 . . . . Matter Decay 1 | . . . . . . . . . . . . . . . . 1 . . Siege Activations . | . . . . . . . . . . . . . . . . . . . Martial Activations . | . . . . . . . . . . . . . . . . . . . Shielding Activations . | . . . . . . . . . . . . . . . . . . . Robots Disrupted 4 | . . . . . . 1 . . . . . . . . . 2 1 . Combat Hostiles 4 | . . . . . . 1 . . . . . . . . . 2 1 . Robots Corrupted 14 | . . . . . . 1 6 . 1 . . . . 3 . 3 . . Combat Hostiles 9 | . . . . . . 1 2 . 1 . . . . 2 . 3 . . Parts Fried 31 | . . . . . . 3 8 . 2 . 2 . . 7 . 4 5 . Impact Corruptions 9 | . . . . . . . 9 . . . . . . . . . . . Robots Melted 2 | . . . . . . . . . 1 . . . 1 . . . . . Combat Hostiles 1 | . . . . . . . . . . . . . 1 . . . . . Parts Melted 15 | . 1 . . . . . . 1 6 . 3 . 3 . . . 1 . Heat Transferred 5844 | . 444 . . 50 . 100 . 1350 1000 . 200 . 1350 150 . 100 1100 . Parts Sabotaged . | . . . . . . . . . . . . . . . . . . . Parts Stolen 5 | . . . . . . . . . . . . . . 5 . . . . Parts Stripped . | . . . . . . . . . . . . . . . . . . . Power Chain Reactions 16 | . . . . 1 . 1 . . . . 2 . . 1 . 2 9 . Alert | -11 -10 -10 -9 -9 -9 -8 -8 -8 -7 -7 -7 -5 -5 -5 -5 -4 -4 -3 ------- Run | Yrd Mat Min Mat Min Exi Min Mat Gar Fac Sto Rec Fac Upp Upp War Pro Fac Res Maximum Alert Level 4 | . . 1 2 . . . 2 3 2 . 1 1 . . . . 4 3 Low Security (%) 70 | 100 100 76 29 100 . 100 54 51 . 100 91 . . . . . 19 . Level 1 17 | . . 23 56 . . . 38 17 27 . 8 100 . . . . 9 . Level 2 7 | . . . 13 . . . 6 21 72 . . . . . . . 15 94 Level 3 4 | . . . . . . . . 10 . . . . . . . . 53 5 Level 4 . | . . . . . . . . . . . . . . . . . 2 . Level 5 . | . . . . . . . . . . . . . . . . . . . High Security . | . . . . . . . . . . . . . . . . . . . Max Security . | . . . . . . . . . . . . . . . . . . . Peak Influence 1117 | 10 174 232 460 102 . 183 415 707 570 197 360 322 . . . . 1117 715 Initial 580 | . . 58 44 45 . . 15 56 371 135 . 318 . . . . 150 580 Average 179 | 2 39 169 271 30 . 62 152 319 457 137 79 307 . . . . 660 570 Influence Increases 9038 | 25 472 304 838 265 . 456 1064 701 380 280 1048 319 170 305 . 245 1981 185 Destroy 0b10 Robot/C 4140 | . 260 240 520 200 . 240 660 320 240 160 220 40 80 260 . 180 520 . Destroy 0b10 Robot/NC 930 | 25 20 15 15 15 . 10 115 10 35 15 470 . . 15 . 10 155 5 Destroy Leader 794 | . 52 40 160 30 . 50 160 30 40 52 . 10 30 30 . 40 70 . Successful Hack 176 | . 34 . 23 6 . . 26 12 . 3 72 . . . . . . . Select Force Hacks 240 | . 60 . 60 . . . . . . . 120 . . . . . . . Disable Machine 630 | . 15 . 15 . . 90 . 60 30 15 15 15 . . . . 375 . Anti-Garrison Action 100 | . . . . . . . . 100 . . . . . . . . . . Destroy Structure 953 | . 1 9 30 14 . 21 58 169 35 5 151 4 . . . . 456 . Advance Influence 400 | . . . . . . . . . . . . 250 . . . . 150 . Lose Combat Pursuer 675 | . 30 . 15 . . 45 45 . . 30 . . 60 . . 15 255 180 Influence Decreases 8323 | 25 322 338 836 373 10 416 1017 81 788 579 884 176 456 206 120 245 874 577 Entered New Map 1666 | . . 92 72 73 10 . 25 31 336 164 . 96 115 5 120 . . 527 Time Decay 4706 | 25 272 246 574 300 . 376 552 . 262 195 553 80 341 191 . 245 464 30 Lost Part 751 | . 50 . 40 . . 40 140 50 40 70 31 . . 10 . . 260 20 Purge Threat 1200 | . . . 150 . . . 300 . 150 150 300 . . . . . 150 . Squads Dispatched 33 | . 4 . 4 . . . 7 . 3 1 . . . . . . 14 . Investigation 10 | . 4 . 3 . . . 1 . 1 . . . . . . . 1 . Extermination 3 | . . . . . . . . . . . . . . . . . 3 . Reinforcement 15 | . . . 1 . . . 3 . 2 1 . . . . . . 8 . Assault 1 | . . . . . . . . . . . . . . . . . 1 . Garrison 4 | . . . . . . . 3 . . . . . . . . . 1 . Intercept . | . . . . . . . . . . . . . . . . . . . Searches Triggered . | . . . . . . . . . . . . . . . . . . . Construction Impeded 4 | . . . . . . . . . 1 . . . . . . . 3 . Haulers Reinforced 1 | . . . . . . . . . . . . . . . . . 1 . Active Scanning Responses . | . . . . . . . . . . . . . . . . . . . Cargo Convoy Interrupts . | . . . . . . . . . . . . . . . . . . . Stealth | -11 -10 -10 -9 -9 -9 -8 -8 -8 -7 -7 -7 -5 -5 -5 -5 -4 -4 -3 --------- Run | Yrd Mat Min Mat Min Exi Min Mat Gar Fac Sto Rec Fac Upp Upp War Pro Fac Res Distress Signals 13 | . 3 1 2 . . . 4 . . 1 . . . . . . 2 . Communications Jammed 1 | . . . . . . . . . . . . . . . . . 1 . Distress Signals 1 | . . . . . . . . . . . . . . . . . 1 . Times Spotted 323 | . 27 12 34 9 . 15 58 11 15 14 12 2 8 18 . 12 56 20 Peak Tracking Total 16 | . 5 3 4 4 . 3 5 3 4 6 5 1 4 5 . 4 12 16 Tactical Retreats 15 | . 1 . 1 . . 2 2 . . 1 . . 1 . . 1 5 1 Traps | -11 -10 -10 -9 -9 -9 -8 -8 -8 -7 -7 -7 -5 -5 -5 -5 -4 -4 -3 ------- Run | Yrd Mat Min Mat Min Exi Min Mat Gar Fac Sto Rec Fac Upp Upp War Pro Fac Res Traps Triggered 19 | . 2 . 5 . . . . 8 . 1 . . . . . . 3 . Indirectly . | . . . . . . . . . . . . . . . . . . . Trap Hack Attempts . | . . . . . . . . . . . . . . . . . . . Triggered . | . . . . . . . . . . . . . . . . . . . Disarmed . | . . . . . . . . . . . . . . . . . . . Reprogrammed . | . . . . . . . . . . . . . . . . . . . Reused . | . . . . . . . . . . . . . . . . . . . Traps Extracted . | . . . . . . . . . . . . . . . . . . . Installed . | . . . . . . . . . . . . . . . . . . . Triggered . | . . . . . . . . . . . . . . . . . . . Machines | -11 -10 -10 -9 -9 -9 -8 -8 -8 -7 -7 -7 -5 -5 -5 -5 -4 -4 -3 ---------- Run | Yrd Mat Min Mat Min Exi Min Mat Gar Fac Sto Rec Fac Upp Upp War Pro Fac Res Machines Disabled 43 | . 1 . 1 . . 6 . 4 2 1 2 1 . . . . 25 . Max in Single Turn 9 | . 1 . 1 . . 6 . 2 1 1 1 1 . . . . 9 . Machines Repaired . | . . . . . . . . . . . . . . . . . . . Machines Dismantled . | . . . . . . . . . . . . . . . . . . . Machines Sabotaged . | . . . . . . . . . . . . . . . . . . . Overloaded Fab Kills . | . . . . . . . . . . . . . . . . . . . Hacking | -11 -10 -10 -9 -9 -9 -8 -8 -8 -7 -7 -7 -5 -5 -5 -5 -4 -4 -3 --------- Run | Yrd Mat Min Mat Min Exi Min Mat Gar Fac Sto Rec Fac Upp Upp War Pro Fac Res Machines Accessed 64 | . 8 . 14 2 2 . 9 3 3 4 12 1 . 1 . . 3 2 Terminals 43 | . 6 . 10 1 . . 7 3 3 4 6 . . . . . 1 2 Fabricators . | . . . . . . . . . . . . . . . . . . . Repair Stations 1 | . . . 1 . . . . . . . . . . . . . . . Recycling Units 11 | . 2 . 2 . . . . . . . 5 . . . . . 2 . Scanalyzers 2 | . . . 1 . . . 1 . . . . . . . . . . . Garrison Access 2 | . . . . . . . 1 . . . . 1 . . . . . . Total Hacks 171 | . 22 . 40 4 2 . 39 6 5 10 33 1 . 1 . . 4 4 Successful 99 | . 14 . 18 3 2 . 28 1 1 6 23 1 . 1 . . 1 . Failed 70 | . 8 . 21 . . . 11 5 4 4 10 . . . . . 3 4 Catastrophic 21 | . . . 2 . . . 4 3 3 2 4 . . . . . 2 1 Database Lockouts 2 | . . . 1 1 . . . . . . . . . . . . . . Manual 119 | . 19 . 24 3 1 . 29 2 4 10 26 . . . . . . 1 Terminals 133 | . 20 . 31 3 . . 35 6 5 10 17 . . . . . 2 4 Fabricators . | . . . . . . . . . . . . . . . . . . . Repair Stations 4 | . . . 4 . . . . . . . . . . . . . . . Recycling Units 21 | . 2 . 3 . . . . . . . 14 . . . . . 2 . Scanalyzers 4 | . . . 2 . . . 2 . . . . . . . . . . . Garrison Access 3 | . . . . . . . 2 . . . . 1 . . . . . . Terminal Hacks 34 | . 5 . 5 3 2 . 8 1 1 1 6 . . 1 . . 1 . Record 1 | . . . . . 1 . . . . . . . . . . . . . Part Schematic 4 | . 1 . 1 . . . 1 . . . 1 . . . . . . . Robot Schematic 1 | . 1 . . . . . . . . . . . . . . . . . Robot Analysis 2 | . 1 . . 1 . . . . . . . . . . . . . . Prototype ID Bank 7 | . 1 . 2 1 . . 2 . . . 1 . . . . . . . Open Door 2 | . . . . 1 . . . . . . . . . 1 . . . . Emergency Access Points 1 | . . . . . . . . 1 . . . . . . . . . . Alert Level 1 | . . . . . . . 1 . . . . . . . . . . . Unreport Threat 8 | . . . 1 . . . 2 . 1 1 2 . . . . . 1 . Locate Traps 1 | . 1 . . . . . . . . . . . . . . . . . Hauler Manifests 1 | . . . . . . . 1 . . . . . . . . . . . Registered Components 1 | . . . . . . . 1 . . . . . . . . . . . Registered Prototypes 1 | . . . 1 . . . . . . . . . . . . . . . Proto ID Catalog 1 | . . . . . 1 . . . . . . . . . . . . . Release Object 2 | . . . . . . . . . . . 2 . . . . . . . Fabricator Hacks . | . . . . . . . . . . . . . . . . . . . Repair Station Hacks 2 | . . . 2 . . . . . . . . . . . . . . . Scan Component 1 | . . . 1 . . . . . . . . . . . . . . . Repair 1 | . . . 1 . . . . . . . . . . . . . . . Recycling Unit Hacks 3 | . . . . . . . . . . . 3 . . . . . . . Retrieve Components 3 | . . . . . . . . . . . 3 . . . . . . . Scanalyzer 4 | . . . 2 . . . 2 . . . . . . . . . . . Insert Component 2 | . . . 1 . . . 1 . . . . . . . . . . . Analyze 2 | . . . 1 . . . 1 . . . . . . . . . . . Garrison Access Hacks 2 | . . . . . . . 1 . . . . 1 . . . . . . Unlock Access 2 | . . . . . . . 1 . . . . 1 . . . . . . Unauthorized Hacks 54 | . 9 . 9 . . . 17 . . 5 14 . . . . . . . Terminals 44 | . 7 . 7 . . . 17 . . 5 8 . . . . . . . Track 5 | . . . . . . . 3 . . 2 . . . . . . . . Botnet 11 | . 2 . 2 . . . 4 . . 1 2 . . . . . . . Disrupt 2 | . . . . . . . 1 . . . 1 . . . . . . . Operators 2 | . . . . . . . 2 . . . . . . . . . . . Skim 24 | . 5 . 5 . . . 7 . . 2 5 . . . . . . . Fabricators . | . . . . . . . . . . . . . . . . . . . Repair Stations . | . . . . . . . . . . . . . . . . . . . Recycling Units 10 | . 2 . 2 . . . . . . . 6 . . . . . . . Mask 2 | . . . . . . . . . . . 2 . . . . . . . Tunnel 8 | . 2 . 2 . . . . . . . 4 . . . . . . . Scanalyzers . | . . . . . . . . . . . . . . . . . . . Garrison Access . | . . . . . . . . . . . . . . . . . . . Data Cores Recovered 2 | . . . . . . . . . 1 . . . . . . . 1 . Used . | . . . . . . . . . . . . . . . . . . . Hacking Detections 51 | . 6 . 11 . . . 8 3 3 5 9 1 . . . . 3 2 Full Trace Events 3 | . . . . . . . 1 . 1 . 1 . . . . . . . Feedback Events . | . . . . . . . . . . . . . . . . . . . Feedback Blocked . | . . . . . . . . . . . . . . . . . . . Robot Schematics Acquired 1 | . 1 . . . . . . . . . . . . . . . . . Robots Built . | . . . . . . . . . . . . . . . . . . . Authchips . | . . . . . . . . . . . . . . . . . . . Time . | . . . . . . . . . . . . . . . . . . . Total Robot Build Rating . | . . . . . . . . . . . . . . . . . . . Part Schematics Acquired 5 | . 1 . 2 . . . 1 . . . 1 . . . . . . . Parts Built . | . . . . . . . . . . . . . . . . . . . Authchips . | . . . . . . . . . . . . . . . . . . . Time . | . . . . . . . . . . . . . . . . . . . Total Part Build Rating . | . . . . . . . . . . . . . . . . . . . Parts Repaired 1 | . . . 1 . . . . . . . . . . . . . . . Time 32 | . . . 32 . . . . . . . . . . . . . . . Parts Recycled . | . . . . . . . . . . . . . . . . . . . Recycled Matter . | . . . . . . . . . . . . . . . . . . . Retrieved Matter . | . . . . . . . . . . . . . . . . . . . Retrieved Components 26 | . . . . . . . . . . . 26 . . . . . . . Parts Scanalyzed 2 | . . . 1 . . . 1 . . . . . . . . . . . Part Schematics Acquired 1 | . . . 1 . . . . . . . . . . . . . . . Parts Damaged 1 | . . . 1 . . . . . . . . . . . . . . . Bothacking | -11 -10 -10 -9 -9 -9 -8 -8 -8 -7 -7 -7 -5 -5 -5 -5 -4 -4 -3 ------------ Run | Yrd Mat Min Mat Min Exi Min Mat Gar Fac Sto Rec Fac Upp Upp War Pro Fac Res Used RIF Installer 1 | . . . . . . . . 1 . . . . . . . . . . Robots Hacked . | . . . . . . . . . . . . . . . . . . . Non-combat . | . . . . . . . . . . . . . . . . . . . Combat . | . . . . . . . . . . . . . . . . . . . Robot Hacks Applied . | . . . . . . . . . . . . . . . . . . . Relay Couplers Released . | . . . . . . . . . . . . . . . . . . . Fabnet Peak Effective % . | . . . . . . . . . . . . . . . . . . . Robots Rewired . | . . . . . . . . . . . . . . . . . . . Allies Hacked . | . . . . . . . . . . . . . . . . . . . Hacks Repelled . | . . . . . . . . . . . . . . . . . . . Allies | -11 -10 -10 -9 -9 -9 -8 -8 -8 -7 -7 -7 -5 -5 -5 -5 -4 -4 -3 -------- Run | Yrd Mat Min Mat Min Exi Min Mat Gar Fac Sto Rec Fac Upp Upp War Pro Fac Res Total Allies . | . . . . . . . . . . . . . . . . . . . Largest Group . | . . . . . . . . . . . . . . . . . . . Highest-Rated Group . | . . . . . . . . . . . . . . . . . . . Highest-Rated Ally . | . . . . . . . . . . . . . . . . . . . Total Orders . | . . . . . . . . . . . . . . . . . . . Ally Attacks . | . . . . . . . . . . . . . . . . . . . Total Damage . | . . . . . . . . . . . . . . . . . . . Kills . | . . . . . . . . . . . . . . . . . . . Allies Corrupted . | . . . . . . . . . . . . . . . . . . . Allies Melted . | . . . . . . . . . . . . . . . . . . . Intel | -11 -10 -10 -9 -9 -9 -8 -8 -8 -7 -7 -7 -5 -5 -5 -5 -4 -4 -3 ------- Run | Yrd Mat Min Mat Min Exi Min Mat Gar Fac Sto Rec Fac Upp Upp War Pro Fac Res Active Infowar (turns) 7864 | 72 222 247 1689 . . . . . . . . 53 1708 1274 49 1466 1084 . Sensors 4729 | . . . . . . . . . . . . . 1708 1274 49 1466 232 . IFF 149 | . . . . . . . . . . . . . . . . . 149 . Structural 1386 | . . . 1247 . . . . . . . . 53 . . . . 86 . Seismic 2230 | 72 222 247 1689 . . . . . . . . . . . . . . . Jamming 703 | . . . . . . . . . . . . . . . . . 703 . Robot Analysis Total 2 | . 1 . . 1 . . . . . . . . . . . . . . Derelict Logs Recovered 9 | . . . . 1 . . . . . . . . 3 3 . 2 . . Drone Launches . | . . . . . . . . . . . . . . . . . . . Drone Recoveries . | . . . . . . . . . . . . . . . . . . . Exploration | -11 -10 -10 -9 -9 -9 -8 -8 -8 -7 -7 -7 -5 -5 -5 -5 -4 -4 -3 ------------- Run | Yrd Mat Min Mat Min Exi Min Mat Gar Fac Sto Rec Fac Upp Upp War Pro Fac Res Turns Passed 24083 | 111 1058 534 1745 951 819 1563 2081 1613 578 419 5795 169 1920 1710 51 1723 1167 76 Spaces Moved 12589 | 61 713 374 1152 611 429 705 889 696 335 183 2427 101 1042 1011 37 1137 553 133 Core 202 | 1 . . . . . . . . . . . . . . . . 68 133 Treads . | . . . . . . . . . . . . . . . . . . . Legs . | . . . . . . . . . . . . . . . . . . . Wheels 12387 | 60 713 374 1152 611 429 705 889 696 335 183 2427 101 1042 1011 37 1137 485 . Hover . | . . . . . . . . . . . . . . . . . . . Flight . | . . . . . . . . . . . . . . . . . . . Fastest Speed 50 | 50 90 105 100 145 130 190 145 145 131 120 103 125 125 135 135 135 50 50 Average Speed 137 | 99 103 113 122 145 187 202 155 173 133 139 120 125 125 135 135 140 148 50 Slowest Speed 245 | 100 105 115 145 145 205 205 245 245 210 176 168 125 135 135 135 150 190 50 Overloaded Moves . | . . . . . . . . . . . . . . . . . . . Propulsion Burnouts . | . . . . . . . . . . . . . . . . . . . Robots Hopped . | . . . . . . . . . . . . . . . . . . . Potential Cave-ins 4 | . . . . . . . 4 . . . . . . . . . . . Cave-ins Triggered . | . . . . . . . . . . . . . . . . . . . Exploration Rate (%) 62 | 4 96 62 93 100 89 100 70 87 14 47 99 3 93 91 9 91 21 9 Regions Visited 18 Branch Regions 10 Pre-discovered Areas 12 | . 2 . 2 2 1 . . . . . 4 . . . . 1 . . Known Exits Taken 8 | . . 1 . . . 1 1 . 1 1 1 1 . 1 . . . . Unknown Exits Taken 9 | 1 1 . 1 1 1 . . . . . . . 1 . 1 1 1 . Scrap Searched 17 | . . 1 . 2 . 2 . . . . . . 4 5 . 3 . . Spaces Dug 124 | . . 7 4 . . . 28 34 5 4 16 1 4 . . . 21 . Terrain Destroyed 744 | . . 10 28 17 . 25 57 75 30 4 160 2 23 7 . 9 297 . Melee 53 | . . . 4 . . . 9 34 1 3 . 1 . . . . 1 . Projectile 253 | . . 3 1 . . . 7 . . 1 152 1 23 . . . 65 . AOE 436 | . . 7 23 17 . 25 41 41 29 . 8 . . 7 . 9 229 . Terrain Rammed . | . . . . . . . . . . . . . . . . . . . Walls Destroyed . | . . . . . . . . . . . . . . . . . . . Machines Disabled . | . . . . . . . . . . . . . . . . . . . Actions | -11 -10 -10 -9 -9 -9 -8 -8 -8 -7 -7 -7 -5 -5 -5 -5 -4 -4 -3 --------- Run | Yrd Mat Min Mat Min Exi Min Mat Gar Fac Sto Rec Fac Upp Upp War Pro Fac Res Total 17883 | 94 925 420 1382 646 445 762 1304 929 406 287 5026 127 1621 1321 37 1237 773 141 Wait 3411 | 10 88 5 86 3 . 5 171 16 1 16 2163 1 514 243 . 49 37 3 Move 12570 | 60 712 373 1151 610 428 704 888 694 334 182 2426 100 1041 1010 36 1136 552 133 Hop . | . . . . . . . . . . . . . . . . . . . Pick Up 251 | 8 24 2 28 6 10 3 31 12 9 15 52 3 8 12 . 9 18 1 Fast Attach 56 | 7 4 1 10 1 1 1 5 . 5 1 10 1 2 1 . . 5 1 Attach 81 | . 5 . 10 . 1 5 18 8 5 5 13 1 . 1 . . 9 . Detach 10 | . . . . . 1 . . 3 1 . 2 . . 1 . . 2 . Swap 172 | 1 11 4 27 2 . . 27 35 13 8 7 2 8 8 1 15 3 . Drop 218 | . 16 3 20 7 4 3 14 11 6 10 70 3 10 11 . 8 21 1 Fire 970 | 8 65 32 45 17 . 41 129 44 31 45 282 14 38 34 . 20 125 . Melee 94 | . . . 5 . . . 21 58 1 5 . 2 . . . . 1 1 Ram 1 | . . . . . . . . . . . . . . . . . . 1 Kick . | . . . . . . . . . . . . . . . . . . . Crush . | . . . . . . . . . . . . . . . . . . . Escape Stasis 48 | . . . . . . . . 48 . . . . . . . . . . Rewire 1 | . . . . . . . . . . . 1 . . . . . . . Trap . | . . . . . . . . . . . . . . . . . . . Miscellaneous . | . . . . . . . . . . . . . . . . . . . Route ------- -11/Scrapyard -10/Materials (discovered 5 exits: *Mat x3 / [*Min] / *Sub) -10/Mines (discovered 3 exits: *Mat x2 / *Sub) -9/Materials (discovered 4 exits: *Mat x3 / *Min) -9/Mines (discovered 3 exits: *Mat x2 / *Exi) -9/Exiles (discovered 2 exits: [*Min x2]) -8/Mines (discovered 2 exits: *Mat x2) -8/Materials (discovered 4 exits: *Fac x3 / Gar) -8/Garrison (discovered 3 exits: *Fac x3) -7/Factory (discovered 2 exits: *Sto / Low) -7/Storage (discovered 2 exits: Fac / *Rec) -7/Recycling -5/Factory (discovered 2 exits: *Upp / Gar) -5/Upper Caves -5/Upper Caves (discovered 2 exits: *Fac / *War) -5/Warlord -4/Proximity Caves -4/Factory (discovered 2 exits: *Res / Arm) -3/Research History --------- Turn | Location | Event 28 | -11/Scrapyard | Discovered new exit (range 15) 112 | -11/Scrapyard | Entered Materials 250 | -10/Materials | Discovered new exit (range 16) 315 | -10/Materials | Build established: Mutant 340 | -10/Materials | Discovered new exit (range 14) 521 | -10/Materials | Lost 4 parts (1p2n1u) 547 | -10/Materials | Core integrity fell below 50% 797 | -10/Materials | Discovered new exit (range 3) 933 | -10/Materials | Discovered new exit (range 10) 1024 | -10/Materials | Discovered new exit (range 14) 1061 | -10/Materials | Loaded intel: 6 terminal locations 1093 | -10/Materials | Learned location of 2 exits from Subcaves 1126 | -10/Materials | Learned location of 2 exits from Mines 1132 | -10/Materials | Loaded intel: 13 trap records 1144 | -10/Materials | Learned 2 Storage zone layouts 1168 | -10/Materials | Loaded intel: 1 repair station location 1170 | -10/Materials | Entered Mines 1171 | -10/Mines | Identified exit to Subcaves 1172 | -10/Mines | Identified exit to Materials 1183 | -10/Mines | Met a Derelict bent on vengeance 1317 | -10/Mines | Core integrity fell below 20% 1704 | -10/Mines | Entered Materials 1704 | -9/Materials | Evolved 2 slots: Utility x2 1747 | -9/Materials | Build established: Scavenger-Mutant 1980 | -9/Materials | Discovered new exit (range 8) 2105 | -9/Materials | Discovered new exit (range 16) 2593 | -9/Materials | Build established: Mutant 2604 | -9/Materials | Repaired Hrd. Light Armor Plating 2621 | -9/Materials | Identified exit to Materials 2654 | -9/Materials | Central database locked down 2724 | -9/Materials | Learned location of 1 exit from Recycling 2760 | -9/Materials | Learned location of 2 exits from Materials 3449 | -9/Materials | Entered Mines 3473 | -9/Mines | Discovered exit to Materials (range 10) 3479 | -9/Mines | Learned location of Storage (-7) 3678 | -9/Mines | Met a Derelict who couldn't figure out how to use a Trap Extractor 3740 | -9/Mines | Discovered exit to Materials (range 13) 3778 | -9/Mines | Learned location of Zion (-6) 3842 | -9/Mines | Central database locked down 3908 | -9/Mines | Deemed a non-threat by the Exiles lab entrance 3908 | -9/Mines | Discovered new exit (range 5) 4400 | -9/Mines | Entered Exiles 4422 | -9/Exiles | Discovered new exit (range 15) 4437 | -9/Exiles | Met 8R-AWN 4460 | -9/Exiles | Met EX-HEX 4605 | -9/Exiles | Visited The Gauntlet 4756 | -9/Exiles | Met EX-DEC 4808 | -9/Exiles | Build established: Hauler-Mutant 4857 | -9/Exiles | Met EX-BIN 4885 | -9/Exiles | Aligned with FarCom system 4887 | -9/Exiles | Given EX-Vault access code 4937 | -9/Exiles | Opened EX-Vault 4952 | -9/Exiles | Found PSU Rigger 4955 | -9/Exiles | Found Deploy-a-Sentry 4958 | -9/Exiles | Found Deploy-a-Sentry 4961 | -9/Exiles | Found Deploy-a-Sentry 4974 | -9/Exiles | Found Skeleton Box 5026 | -9/Exiles | Warned to stay clear of 0b10 Research branches 5192 | -9/Exiles | Discovered new exit (range 10) 5219 | -9/Exiles | Stole three prototypes: Skeleton Box, PSU Rigger, Deploy-a-Sentry 5219 | -9/Exiles | Entered Mines 5763 | -8/Mines | Discovered exit to Materials (range 4) 6134 | -8/Mines | Found a Scrap Suit stashed away for nefarious purposes 6744 | -8/Mines | Discovered exit to Materials (range 3) 6782 | -8/Mines | Entered Materials 6782 | -8/Materials | Evolved 2 slots: Propulsion x2 6783 | -8/Materials | Identified exit to Factory 7054 | -8/Materials | Lost 3 parts (3n) 7453 | -8/Materials | Lost 4 parts (2p1u1w) 7499 | -8/Materials | Discovered exit to Factory (range 5) 7612 | -8/Materials | Destroyed 7 combat bots 8268 | -8/Materials | Garrison activated, responded to threat 8291 | -8/Materials | Lost 4 parts (1p1n2w) 8411 | -8/Materials | Identified exit to Garrison 8701 | -8/Materials | Learned 2 Storage zone layouts 8737 | -8/Materials | Learned location of 1 exit from Recycling 8765 | -8/Materials | Learned 4 Recycling zone layouts 8781 | -8/Materials | Learned location of 1 exit from Recycling 8805 | -8/Materials | Learned location of 1 exit from Recycling 8833 | -8/Materials | Learned 2 Lower Caves zone layouts 8863 | -8/Materials | Entered Garrison 8935 | -8/Garrison | Found Launcher Loader 9141 | -8/Garrison | Triggered checkpoint 9245 | -8/Garrison | Triggered checkpoint 9322 | -8/Garrison | Spotted B-75 Beast 9469 | -8/Garrison | Triggered checkpoint 9552 | -8/Garrison | Discovered exit to Factory (range 4) 9686 | -8/Garrison | Triggered checkpoint 9820 | -8/Garrison | Discovered exit to Factory (range 15) 9968 | -8/Garrison | Triggered checkpoint 10109 | -8/Garrison | Discovered exit to Factory (range 10) 10111 | -8/Garrison | Triggered checkpoint 10440 | -8/Garrison | Installed Relay Interface Framework 10476 | -8/Garrison | Entered Factory 10476 | -7/Factory | Evolved 2 slots: Propulsion x2 10477 | -7/Factory | Identified exit to Storage 10477 | -7/Factory | Identified exit to Lower Caves 10478 | -7/Factory | FarCom data flow suspended 10586 | -7/Factory | Destroyed 7 combat bots 10593 | -7/Factory | Lost 3 parts (2n1u) 11054 | -7/Factory | Entered Storage 11055 | -7/Storage | Identified exit to Factory 11055 | -7/Storage | Identified exit to Recycling 11283 | -7/Storage | Lost 3 parts (2n1u) 11467 | -7/Storage | Used back door to open Recycling access 11473 | -7/Storage | Entered Recycling 11474 | -7/Recycling | Identified exit to Factory 11474 | -7/Recycling | Identified exit to Scraptown 12012 | -7/Recycling | Build established: Scavenger-Mutant 12420 | -7/Recycling | Scanned before Scraplab entrance 12438 | -7/Recycling | Entered Scraplab 12441 | -7/Recycling | Angered Scraplab inhabitants 12444 | -7/Recycling | Found Prototype Device 12472 | -7/Recycling | Identified Scrap Engine 12493 | -7/Recycling | Lost 5 parts (1n1u3w) 13067 | -7/Recycling | Build established: Construct 17268 | -7/Recycling | Entered Factory 17268 | -5/Factory | Evolved 4 slots: Power x1, Propulsion x2, Weapon x1 17281 | -5/Factory | Identified exit to Garrison 17318 | -5/Factory | Discovered new exit (range 8) 17436 | -5/Factory | Identified exit to Upper Caves 17437 | -5/Factory | Entered Upper Caves 18170 | -5/Upper Caves | Spotted B-75 Beast 18187 | -5/Upper Caves | Destroyed B-75 Beast 18368 | -5/Upper Caves | Attracted the attention of an 0b10 checkpoint 18424 | -5/Upper Caves | Learned 12 Factory zone layouts 18426 | -5/Upper Caves | Learned Factory garrison access intel 18654 | -5/Upper Caves | Learned Factory terminal intel 18978 | -5/Upper Caves | Discovered new exit (range 14) 19357 | -5/Upper Caves | Entered another Upper Caves area 19395 | -5/Upper Caves | Discovered new exit (range 6) 20161 | -5/Upper Caves | Identified exit to Warlord 20406 | -5/Upper Caves | Attracted the attention of an 0b10 checkpoint 20454 | -5/Upper Caves | Destroyed 7 combat bots 20472 | -5/Upper Caves | Learned Factory emergency access door positions 20844 | -5/Upper Caves | Spotted FV-1GR(f) 20844 | -5/Upper Caves | Spotted NE-UD3(f) 20845 | -5/Upper Caves | Spotted PQ-UT1(f) 20846 | -5/Upper Caves | Encountered a Master Thief 20846 | -5/Upper Caves | Encountered a Master Thief 20846 | -5/Upper Caves | Encountered a Master Thief 20846 | -5/Upper Caves | Encountered a Master Thief 20846 | -5/Upper Caves | Spotted 81-RI3(f) 20847 | -5/Upper Caves | Encountered a Master Thief 20847 | -5/Upper Caves | Deploy-a-Sentry stolen by Master Thief 20848 | -5/Upper Caves | Deploy-a-Sentry stolen by Master Thief 20849 | -5/Upper Caves | Spotted UF-BCK(f) 20850 | -5/Upper Caves | Deploy-a-Sentry stolen by Master Thief 20853 | -5/Upper Caves | Skeleton Box stolen by Master Thief 20857 | -5/Upper Caves | Disruptor Cannon stolen by Master Thief 21067 | -5/Upper Caves | Entered Warlord 21105 | -5/Warlord | Discovered new exit (range 9) 21118 | -5/Warlord | Entered Proximity Caves 21406 | -4/Proximity Caves | Spotter reported a threat 21437 | -4/Proximity Caves | Learned Research garrison access intel 21750 | -4/Proximity Caves | Spotted B-86 Titan 22186 | -4/Proximity Caves | Destroyed B-86 Titan 22749 | -4/Proximity Caves | Discovered new exit (range 16) 22841 | -4/Proximity Caves | Entered Factory 22841 | -4/Factory | Evolved 2 slots: Utility x1, Weapon x1 22842 | -4/Factory | Identified exit to Armory 22845 | -4/Factory | Loaded intel: 27 terminal locations 22846 | -4/Factory | Loaded intel: 4 garrison access locations 23076 | -4/Factory | Garrison activated, responded to threat 23193 | -4/Factory | Lost 3 parts (1n1u1w) 23269 | -4/Factory | Lost 3 parts (1p1n1u) 23393 | -4/Factory | Lost 4 parts (2p1u1w) 23841 | -4/Factory | First assault squad dispatched 23971 | -4/Factory | Core integrity fell below 50% 23998 | -4/Factory | Discovered new exit (range 15) 24000 | -4/Factory | Lost 14 parts (2p5n4u3w) 24008 | -4/Factory | Entered Research 24008 | -3/Research | Evolved 2 slots: Utility x2 24009 | -3/Research | Loaded intel: 3 garrison access locations 24046 | -3/Research | Spotted B-86 Titan 24052 | -3/Research | Core integrity fell below 50% 24082 | -3/Research | Core integrity fell below 20% 24084 | -3/Research | Destroyed by S-43 Plague with Heavy Machine Gun Last Messages --------------- 24031_ Sneak attack on K-01 Serf. 24031_ K-01 Serf destroyed. 24033_ Acquired 15 matter. 24035_ Acquired Wheel. 24039_ ALERT: All DSF locations entering lockdown mode. 24041_ K-01 Serf destroyed. 24042_ K-01 Serf collects debris. 24043_ Power Sword destroyed. 24045_ Wheel destroyed. 24046_ Critical hit (Burn: +50). 24047_ K-01 Serf collects debris. 24048_ Slammed into G-67 Veteran. 24055_ Dropped Corrupted Hardcell Cannon. 24057_ Acquired Hcp. Storage Unit. 24067_ K-01 Serf destroyed. 24073_ Connecting with Terminal... 24076_ Knocked back. 24082_ Penetrated by Slug. 24082_ Knocked back. Map ----- +----------------------------------------------------+ | ##### #???????????????????????????????????????? | | # #???????????????????????????????????????? | | # ############????????????????????????????? | | # ???????????????????????????? | | " ???????????????????????????? | | # ???????????????????????????? | | # ???????????????????????????? | | # ##########??????????????????????????????? | | # #? #??????????????????????????????? | | #% #? #??????????????????????????????? | | # # #??????????????????????????????? | | # # """ #??????????????????????????????? | | # + """ #??????????????????????????????? | | ##### # """ #??????????????????????????????? | | ?# # #??????????????????????????????? | | # #? ! #??????????????????????????????? | | # #? #??????????????????????????????? | | + #??##+###########???????????????????????? | | # #???# #?# #?????#?????????????????? | | # #???# #?# #???? #?????????????????? | | ?# #???# #?# #??## ####??????????????? | | ?# #?### ### #? #??????????????? | | #+??# #?# ##+####### #??????????????? | | ????# ### "" ss #??????????????? | | ????# T s!s H +??????????????? | | ### % % @ #??????????????? | | #?# !########## = #??????????????? | | ##### #?###+###???????????= #??????????????? | | ????##+###???# ??????????????####??????????????? | | ?????????????# ! ??????????????????????????????? | | ?????????????# #????????????????????????????? | | ?????????????# #????????????????????????????? | | ?????????????# ! #????????????????????????????? | | ?????????????# #????????????????????????????? | | ?????????????########????????????????????????????? | | ?????????????????????????????????????????????????? | | ?????????????????????????????????????????????????? | | ?????????????????????????????????????????????????? | | ?????????????????????????????????????????????????? | | ?????????????????????????????????????????????????? | | ?????????????????????????????????????????????????? | | ?????????????????????????????????????????????????? | | ?????????????????????????????????????????????????? | | ?????????????????????????????????????????????????? | | ?????????????????????????????????????????????????? | | ?????????????????????????????????????????????????? | | ?????????????????????????????????????????????????? | | ?????????????????????????????????????????????????? | | ?????????????????????????????????????????????????? | | ?????????????????????????????????????????????????? | +----------------------------------------------------+ Best States ------------- Heat Dissipation 67 Coolant Potential 50 Energy Generation 33 Energy Capacity 867 Matter Stores 300 Matter Capacity 300 Sight Range 16 Robot Scan Range 16 Terrain Scan Density 10 Jamming Range 14 Base Temperature (-) 100 Armor Coverage 600 Resistance: KI 30 Resistance: TH 15 Evasion (%) 50 Targeting Accuracy 6 Core Analysis 6 Offensive Hacking 10 Item Schematics ----------------- Huge Storage Unit | -10/Materials | Hacked Arm. Wheel | -9/Materials | Hacked Mni. Grenade Launcher | -9/Materials | Scanalyzed Cargo Storage Unit | -8/Materials | Hacked Arm. Huge Wheel | -7/Recycling | Hacked Robot Schematics ------------------ M-13 Machinist | -10/Materials | Hacked Fabricated ------------ Nothing Repaired ---------- Hrd. Light Armor Plating | 46% | -9/Materials Alien Tech Used ----------------- None Achievements -------------- None Challenges ------------ None Game ------ Seed JammingBackupUnit Manual? 0 Play Time 02:48:18 Cumulative 672.7 hours Start 2025.06.04 @ 17:34:01 End 2025.06.04 @ 20:29:08 Sessions 1 Manual Loads 0 Difficulty Rogue Special Mode None Game No. 149 Rogue 149 Adventurer 0 Explorer 0 Win Type - Total 40 Types 11/6/7/2/1/1/8/2/1/1 Lore% 69 Gallery% 84 Achievement% 81 Wizard Run 0 Options --------- Layout 1 ASCII 0 Keyboard 0 Movement Mouse Keybinds 0 Fullscreen 2 Font 24/Smallcaps Map View 50x35 Zoom Use 2% Tactical HUD 1 Map Filters NONE Filters NONE Steam 1 RUN: 0d57716d-0777-463b-9a14-f7fad8c957a1